fUSD/lending_fUSD_20240629
["ID","MTS","AMOUNT","RATE_DAILY","PERIOD"]
[330676536,1719702660555,-500.0,0.00013917,3]
[330676537,1719702660564,-500.0,0.00013917,3]
[330676538,1719702660574,-500.0,0.00013917,3]
[330676539,1719702660583,-1299.3,0.00013917,3]
[330676540,1719702660593,-500.0,0.00013917,3]
[330676541,1719702660602,-500.0,0.00013917,3]
[330676542,1719702660611,-500.0,0.00013917,3]
[330676543,1719702660621,-1969.68,0.00013917,3]
[330676544,1719702660630,-1260.26,0.00013917,3]
[330676545,1719702660639,-815.68,0.00013917,3]
[330676546,1719702660649,-500.0,0.00013917,3]
[330676547,1719702660658,-500.0,0.00013917,3]
[330676548,1719702660667,-511.56,0.00013917,3]
[330676549,1719702660678,-1376.45,0.00013917,3]
[330676550,1719702660687,-690.88,0.00013917,3]
[330676551,1719702660696,-617.42,0.00013917,3]
[330676552,1719702660710,-864.96,0.00013917,3]
[330676553,1719702660719,-1395.88,0.00013917,3]
[330676554,1719702660728,-500.0,0.00013917,3]
[330676555,1719702660738,-1108.66,0.00013917,3]
[330676556,1719702660748,-500.0,0.00013917,2]
[330676557,1719702660758,-500.0,0.00013917,3]
[330676558,1719702660767,-2327.09,0.00013917,3]
[330676559,1719702660777,-500.0,0.00013917,3]
[330676560,1719702660787,-436.98762474,0.00013917,3]
[330676561,1719702660796,-1442.07,0.00013917,3]
[330676562,1719702660807,-500.0,0.00013917,3]
[330676563,1719702660816,-500.0,0.00013917,3]
[330676564,1719702660826,-528.22,0.00013917,3]
[330676565,1719702660835,-1992.79,0.00013917,3]
[330676566,1719702660845,-500.0,0.00013917,3]
[330676567,1719702660854,-500.0,0.00013917,3]
[330676568,1719702660864,-500.0,0.00013917,3]
[330676569,1719702660874,-642.04,0.00013917,3]
[330676570,1719702660884,-1928.33,0.00013917,3]
[330676571,1719702660893,-750.06,0.00013917,3]
[330676572,1719702660903,-894.32,0.00013917,3]
[330676573,1719702660913,-500.0,0.00013917,3]
[330676574,1719702660924,-1201.17,0.00013917,3]
[330676575,1719702660934,-500.0,0.00013917,3]
[330676576,1719702660944,-520.71,0.00013917,3]
[330676577,1719702660953,-766.22,0.00013917,3]
[330676578,1719702660962,-500.0,0.00013917,3]
[330676579,1719702660970,-500.0,0.00013917,3]
[330676580,1719702660979,-938.02,0.00013917,3]
[330676581,1719702660990,-614.56,0.00013917,3]
[330676582,1719702660999,-1067.84,0.00013917,3]
[330676583,1719702661008,-500.0,0.00013917,3]
[330676584,1719702661018,-500.0,0.00013917,3]
[330676585,1719702661028,-6339.28,0.00013917,3]
[330676586,1719702661037,-500.0,0.00013917,3]
[330676587,1719702661047,-1150.84,0.00013917,3]
[330676588,1719702661056,-500.0,0.00013917,3]
[330676589,1719702661066,-1410.94,0.00013917,3]
[330676590,1719702661075,-586.37,0.00013917,3]
[330676591,1719702661085,-1026.38,0.00013917,3]
[330676592,1719702661094,-500.0,0.00013917,3]
[330676593,1719702661103,-2574.51,0.00013917,3]
[330676594,1719702661112,-744.97,0.00013917,3]
[330676595,1719702661121,-500.0,0.00013917,3]
[330676596,1719702661131,-3451.03,0.00013917,3]
[330676597,1719702661140,-500.0,0.00013917,3]
[330676598,1719702661149,-500.0,0.00013917,3]
[330676599,1719702661159,-3081.42,0.00013917,3]
[330676600,1719702661168,-925.18,0.00013917,3]
[330676601,1719702661178,-977.83,0.00013917,3]
[330676602,1719702661188,-647.76,0.00013917,3]
[330676603,1719702661197,-500.0,0.00013917,3]
[330676604,1719702661206,-559.21287812,0.00013917,3]
[330676605,1719702661216,-500.0,0.00013917,3]
[330676606,1719702661231,-1215.62,0.00013917,3]
[330676607,1719702661240,-2397.63,0.00013917,3]
[330676608,1719702661249,-684.97,0.00013917,3]
[330676609,1719702661259,-602.88,0.00013917,3]
[330676610,1719702661273,-2805.11,0.00013917,3]
[330676611,1719702661282,-1288.95,0.00013917,3]
[330676612,1719702661292,-738.08,0.00013917,3]
[330676613,1719702661302,-587.96,0.00013917,3]
[330676614,1719702661311,-3701.32,0.00013917,3]
[330676615,1719702661321,-172.15702707,0.00013917,3]
[330676616,1719702661330,-881.75,0.00013917,3]
[330676617,1719702661340,-500.0,0.00013917,3]
[330676618,1719702661350,-500.0,0.00013917,3]
[330676619,1719702661360,-3964.61,0.00013917,3]
[330676620,1719702661370,-1900.55,0.00013917,3]
[330676621,1719702661379,-500.0,0.00013917,3]
[330676622,1719702661388,-1902.39925616,0.00013999,2]
[330676623,1719702661397,-1000.0,0.00014,2]
[330676624,1719702661407,-424.65637622,0.00014017,2]
[330676625,1719702661417,-3048.64,0.00014027,3]
[330676626,1719702661428,-2565.71,0.00014027,3]
[330676627,1719702661438,-845.44,0.00014027,3]
[330676628,1719702661447,-773.25,0.00014027,3]
[330676629,1719702661457,-500.0,0.00014027,3]
[330676630,1719702661467,-1543.91,0.00014027,3]
[330676631,1719702661476,-1125.93,0.00014027,3]
[330676632,1719702661486,-555.51,0.00014027,3]
[330676633,1719702661496,-1110.13,0.00014027,3]
[330676634,1719702661506,-1576.86,0.00014027,3]
[330676635,1719702661515,-6884.75,0.00014027,3]
[330676636,1719702661525,-3716.98,0.00014027,3]
[330676637,1719702661534,-1864.91,0.00014027,3]
[330676638,1719702661544,-1667.59,0.00014027,3]
[330676639,1719702661554,-500.0,0.00014027,3]
[330676640,1719702661563,-2020.68,0.00014027,3]
[330676641,1719702661572,-549.13320125,0.00014027,3]
[330676642,1719702661582,-500.0,0.00014027,3]
[330676643,1719702661591,-690.05,0.00014027,3]
[330676644,1719702661601,-500.0,0.00014027,3]
[330676645,1719702661611,-500.0,0.00014027,3]
[330676646,1719702661620,-500.0,0.00014027,3]
[330676647,1719702661630,-1559.06,0.00014027,3]
[330676648,1719702661640,-278.9026165,0.00014027,3]
[330676649,1719702661650,-500.0,0.00014027,3]
[330676650,1719702661660,-500.0,0.00014027,3]
[330676651,1719702661670,-500.0,0.00014027,3]
[330676652,1719702661680,-500.0,0.00014027,3]
[330676653,1719702661690,-558.6,0.00014027,3]
[330676654,1719702661700,-500.0,0.00014027,3]
[330676655,1719702661710,-500.0,0.00014027,3]
[330676656,1719702661720,-1096.51,0.00014027,3]
[330676657,1719702661731,-1713.29,0.00014027,3]
[330676658,1719702661740,-500.0,0.00014027,3]
[330676659,1719702661750,-513.76,0.00014027,3]
[330676660,1719702661762,-500.0,0.00014027,3]
[330676661,1719702661773,-644.85284803,0.00014027,3]
[330676662,1719702661782,-513.5,0.00014027,3]
[330676663,1719702661791,-500.0,0.00014027,3]
[330676664,1719702661801,-500.0,0.00014027,3]
[330676665,1719702661810,-1884.09,0.00014027,3]
[330676666,1719702661820,-500.0,0.00014027,3]
[330676667,1719702661830,-500.0,0.00014027,3]
[330676668,1719702661839,-288.88916857,0.00014027,3]
[330676669,1719702661848,-610.86,0.00014027,3]
[330676670,1719702661858,-648.65,0.00014027,3]
[330676671,1719702661868,-550.73,0.00014027,3]
[330676672,1719702661878,-500.0,0.00014027,3]
[330676673,1719702661888,-500.0,0.00014027,3]
[330676674,1719702661898,-500.0,0.00014027,3]
[330676675,1719702661909,-1575.79,0.00014027,3]
[330676676,1719702661919,-500.0,0.00014027,3]
[330676677,1719702661931,-500.0,0.00014027,3]
[330676678,1719702661940,-500.0,0.00014027,3]
[330676679,1719702661949,-500.0,0.00014027,3]
[330676680,1719702661959,-500.0,0.00014027,3]
[330676681,1719702661968,-500.0,0.00014027,3]
[330676682,1719702661977,-500.0,0.00014027,3]
[330676683,1719702661987,-11180.93639159,0.00014027,3]
[330676684,1719702662523,-586.7,0.00013698,3]
[330676685,1719702662533,-11851.522104,0.00014027,3]
[330676686,1719702662599,-824.35150441,0.00014027,3]
[330676687,1719702662609,-388.09278764,0.00014027,3]
[330676688,1719702662621,-111.90721236,0.00014027,3]
[330676689,1719702662632,-500.0,0.00014027,3]
[330676690,1719702662642,-500.0,0.00014027,3]
[330676691,1719702662652,-20.51908764,0.00014027,3]
[330676692,1719702662664,-581.50091236,0.00014027,3]
[330676693,1719702662676,-500.0,0.00014027,3]
[330676694,1719702662688,-500.0,0.00014027,3]
[330676695,1719702662698,-500.0,0.00014027,3]
[330676696,1719702662708,-504.30768618,0.00014027,3]
[330676697,1719702662719,-600.74,0.00014027,3]
[330676698,1719702662729,-2906.11,0.00014027,3]
[330676699,1719702662740,-500.0,0.00014027,3]
[330676700,1719702662749,-500.0,0.00014027,3]
[330676701,1719702662759,-322.2521812,0.00014027,3]
[330676702,1719702662771,-253.4878188,0.00014027,3]
[330676703,1719702662781,-500.0,0.00014027,3]
[330676704,1719702662791,-500.0,0.00014027,3]
[330676705,1719702662802,-500.0,0.00014027,3]
[330676706,1719702662812,-500.0,0.00014027,3]
[330676707,1719702662822,-500.0,0.00014027,3]
[330676708,1719702662832,-573.7,0.00014027,3]
[330676709,1719702662842,-500.0,0.00014027,3]
[330676710,1719702662852,-216.04911011,0.00014027,3]
[330676711,1719702662903,-283.95088989,0.00014027,3]
[330676712,1719702662913,-500.0,0.00014027,3]
[330676713,1719702662923,-500.0,0.00014027,3]
[330676714,1719702662935,-500.0,0.00014027,3]
[330676715,1719702662945,-500.0,0.00014027,3]
[330676716,1719702662955,-389.5450056,0.00014027,3]
[330676717,1719702662965,-500.0,0.00014027,3]
[330676718,1719702662979,-500.0,0.00014027,3]
[330676719,1719702662989,-500.0,0.00014027,3]
[330676720,1719702662998,-551.79,0.00014027,3]
[330676721,1719702663009,-500.0,0.00014027,3]
[330676722,1719702663019,-524.4,0.00014027,3]
[330676723,1719702663029,-500.0,0.00014027,3]
[330676724,1719702663039,-500.0,0.00014027,3]
[330676725,1719702663050,-285.24866859,0.00014027,3]
[330676726,1719702663061,-500.0,0.00014027,3]
[330676727,1719702663071,-500.0,0.00014027,3]
[330676728,1719702663081,-500.0,0.00014027,3]
[330676729,1719702663091,-608.24,0.00014027,3]
[330676730,1719702663100,-500.0,0.00014027,3]
[330676731,1719702663110,-500.0,0.00014027,3]
[330676732,1719702663119,-1123.35107604,0.00014027,3]
[330676733,1719702663132,-552.47892396,0.00014027,3]
[330676734,1719702663142,-500.0,0.00014027,3]
[330676735,1719702663151,-639.74,0.00014027,3]
[330676736,1719702663160,-814.0,0.00014027,3]
[330676737,1719702663170,-500.0,0.00014027,3]
[330676738,1719702663182,-500.0,0.00014027,3]
[330676739,1719702663191,-500.0,0.00014027,3]
[330676740,1719702663202,-666.7,0.00014027,3]
[330676741,1719702663212,-500.0,0.00014027,3]
[330676742,1719702663222,-500.0,0.00014027,3]
[330676743,1719702663232,-500.0,0.00014027,3]
[330676744,1719702663241,-1041.54,0.00014027,3]
[330676745,1719702663251,-500.0,0.00014027,3]
[330676746,1719702663260,-783.66,0.00014027,3]
[330676747,1719702663271,-500.0,0.00014027,3]
[330676748,1719702663285,-591.94,0.00014027,3]
[330676749,1719702663295,-500.0,0.00014027,3]
[330676750,1719702663305,-558.05,0.00014027,3]
[330676751,1719702663316,-500.0,0.00014027,3]
[330676752,1719702663325,-615.77,0.00014027,3]
[330676753,1719702663335,-657.81,0.00014027,3]
[330676754,1719702663346,-500.0,0.00014027,3]
[330676755,1719702663359,-500.0,0.00014027,3]
[330676756,1719702663371,-945.21,0.00014027,3]
[330676757,1719702663381,-500.0,0.00014027,3]
[330676758,1719702663391,-515.45,0.00014027,3]
[330676759,1719702663402,-500.0,0.00014027,3]
[330676760,1719702663413,-500.0,0.00014027,3]
[330676761,1719702663423,-500.0,0.00014027,3]
[330676762,1719702663687,-510.1,0.00014027,3]
[330676763,1719702663697,-500.0,0.00014027,3]
[330676764,1719702663705,-1445.6,0.00014027,3]
[330676765,1719702663715,-500.0,0.00014027,3]
[330676766,1719702663729,-663.45,0.00014027,3]
[330676767,1719702663745,-500.0,0.00014027,3]
[330676768,1719702663766,-1023.04,0.00014027,3]
[330676769,1719702663779,-500.0,0.00014027,3]
[330676770,1719702663788,-500.0,0.00014027,3]
[330676771,1719702663801,-500.0,0.00014027,3]
[330676772,1719702663811,-500.0,0.00014027,3]
[330676773,1719702663820,-898.03,0.00014027,3]
[330676774,1719702663830,-500.0,0.00014027,3]
[330676775,1719702663839,-500.0,0.00014027,3]
[330676776,1719702663849,-500.0,0.00014027,3]
[330676777,1719702663858,-500.0,0.00014027,3]
[330676778,1719702663868,-1145.38,0.00014027,3]
[330676779,1719702663878,-969.61,0.00014027,3]
[330676780,1719702663887,-1018.95,0.00014027,3]
[330676781,1719702663898,-500.0,0.00014027,3]
[330676782,1719702663909,-975.07,0.00014027,3]
[330676783,1719702663919,-500.0,0.00014027,3]
[330676784,1719702663931,-500.0,0.00014027,3]
[330676785,1719702663941,-799.94,0.00014027,3]
[330676786,1719702663951,-500.0,0.00014027,3]
[330676787,1719702663961,-500.0,0.00014027,3]
[330676788,1719702663972,-500.0,0.00014027,3]
[330676789,1719702663982,-904.83399084,0.00014027,3]
[330676790,1719702664687,-586.7,0.00013808,3]
[330676791,1719702664697,-75.93936826,0.00013917,3]
[330676792,1719702664710,-510.76063174,0.00013917,3]
[330676793,1719702664721,-299.38600916,0.00014027,3]
[330676794,1719702664730,-10.60776396,0.00014027,3]
[330676795,1719702664761,-469.65,0.00014027,3]
[330676796,1719702664774,-86.75223604,0.00014027,3]
[330676797,1719702664784,-166.31622982,0.00014027,3]
[330676798,1719702664808,-333.68377018,0.00014027,3]
[330676799,1719702664818,-831.53,0.00014027,3]
[330676800,1719702664828,-515.38,0.00014027,3]
[330676801,1719702664838,-500.0,0.00014027,3]
[330676802,1719702664848,-500.0,0.00014027,3]
[330676803,1719702664858,-284.9626949,0.00014027,3]
[330676804,1719702664868,-818.1,0.00014027,3]
[330676805,1719702664878,-816.09,0.00014027,3]
[330676806,1719702664888,-1513.73,0.00014027,3]
[330676807,1719702664897,-500.0,0.00014027,3]
[330676808,1719702664909,-500.0,0.00014027,3]
[330676809,1719702664919,-500.0,0.00014027,3]
[330676810,1719702664931,-532.37,0.00014027,3]
[330676811,1719702664941,-649.11284581,0.00014027,3]
[330676812,1719702664950,-1034.64,0.00014027,3]
[330676813,1719702664960,-880.05,0.00014027,3]
[330676814,1719702664971,-500.0,0.00014027,3]
[330676815,1719702664982,-1095.55,0.00014027,3]
[330676816,1719702664991,-619.34,0.00014027,3]
[330676817,1719702665002,-500.0,0.00014027,3]
[330676818,1719702665012,-624.28,0.00014027,3]
[330676819,1719702665022,-500.0,0.00014027,3]
[330676820,1719702665032,-1026.26,0.00014027,3]
[330676821,1719702665042,-500.0,0.00014027,3]
[330676822,1719702665052,-1112.31,0.00014027,3]
[330676823,1719702665062,-500.0,0.00014027,3]
[330676824,1719702665072,-567.0,0.00014027,3]
[330676825,1719702665082,-500.0,0.00014027,3]
[330676826,1719702665092,-518.28,0.00014027,3]
[330676827,1719702665102,-500.0,0.00014027,3]
[330676828,1719702665111,-871.97,0.00014027,3]
[330676829,1719702665122,-809.32,0.00014027,3]
[330676830,1719702665131,-500.0,0.00014027,3]
[330676831,1719702665141,-500.0,0.00014027,3]
[330676832,1719702665151,-2067.38,0.00014027,3]
[330676833,1719702665162,-718.61,0.00014027,3]
[330676834,1719702665172,-500.0,0.00014027,3]
[330676835,1719702665183,-500.0,0.00014027,3]
[330676836,1719702665193,-1368.47,0.00014027,3]
[330676837,1719702665202,-500.0,0.00014027,3]
[330676838,1719702665212,-500.0,0.00014027,3]
[330676839,1719702665222,-500.0,0.00014027,3]
[330676840,1719702665231,-500.0,0.00014027,3]
[330676841,1719702665241,-500.0,0.00014027,3]
[330676842,1719702665251,-500.0,0.00014027,3]
[330676843,1719702665262,-623.23,0.00014027,3]
[330676844,1719702665275,-500.0,0.00014027,3]
[330676845,1719702665284,-500.0,0.00014027,3]
[330676846,1719702665294,-500.0,0.00014027,3]
[330676847,1719702665304,-500.0,0.00014027,3]
[330676848,1719702665315,-500.0,0.00014027,3]
[330676849,1719702665324,-500.0,0.00014027,3]
[330676850,1719702665334,-882.19,0.00014027,3]
[330676851,1719702665344,-500.0,0.00014027,3]
[330676852,1719702665358,-591.78,0.00014027,3]
[330676853,1719702665368,-500.0,0.00014027,3]
[330676854,1719702665378,-531.83,0.00014027,3]
[330676855,1719702665387,-742.61,0.00014027,3]
[330676856,1719702665397,-1585.47,0.00014027,3]
[330676857,1719702665407,-500.0,0.00014027,3]
[330676858,1719702665417,-822.01,0.00014027,3]
[330676859,1719702665426,-500.0,0.00014027,3]
[330676860,1719702665436,-1911.79,0.00014027,3]
[330676861,1719702665446,-500.0,0.00014027,3]
[330676862,1719702665455,-500.0,0.00014027,3]
[330676863,1719702665465,-500.0,0.00014027,3]
[330676864,1719702665475,-589.83,0.00014027,3]
[330676865,1719702665484,-500.0,0.00014027,3]
[330676866,1719702665494,-787.58,0.00014027,3]
[330676867,1719702665504,-837.28,0.00014027,3]
[330676868,1719702665513,-500.0,0.00014027,3]
[330676869,1719702665523,-705.53,0.00014027,3]
[330676870,1719702665534,-1293.27,0.00014027,3]
[330676871,1719702665543,-633.52,0.00014027,3]
[330676872,1719702665553,-500.0,0.00014027,3]
[330676873,1719702665563,-500.0,0.00014027,3]
[330676874,1719702665572,-500.0,0.00014027,3]
[330676875,1719702665582,-500.0,0.00014027,3]
[330676876,1719702665591,-500.0,0.00014027,3]
[330676877,1719702665601,-702.27,0.00014027,3]
[330676878,1719702665611,-817.63,0.00014027,3]
[330676879,1719702665621,-500.0,0.00014027,3]
[330676880,1719702665630,-500.0,0.00014027,3]
[330676881,1719702665639,-500.0,0.00014027,3]
[330676882,1719702665649,-629.19,0.00014027,3]
[330676883,1719702665658,-500.0,0.00014027,3]
[330676884,1719702665668,-500.0,0.00014027,3]
[330676885,1719702665679,-755.42,0.00014027,3]
[330676886,1719702665689,-572.96,0.00014027,3]
[330676887,1719702665699,-802.9,0.00014027,3]
[330676888,1719702665709,-817.91,0.00014027,3]
[330676889,1719702665718,-500.0,0.00014027,3]
[330676890,1719702665728,-500.0,0.00014027,3]
[330676891,1719702665738,-1688.66,0.00014027,3]
[330676892,1719702665747,-500.0,0.00014027,3]
[330676893,1719702665757,-602.94818842,0.00014027,3]
[330676894,1719702665767,-612.48,0.00014027,3]
[330676895,1719702665777,-720.42,0.00014027,3]
[330676896,1719702665787,-500.0,0.00014027,3]
[330676897,1719702665797,-627.07,0.00014027,3]
[330676898,1719702665807,-1888.75,0.00014027,3]
[330676899,1719702666206,-475.64916882,0.00014027,3]
[330676900,1719702666219,-664.05,0.00014027,3]
[330676901,1719702666228,-591.93,0.00014027,3]
[330676902,1719702666238,-1221.71,0.00014027,3]
[330676903,1719702666247,-536.84,0.00014027,3]
[330676904,1719702666257,-862.47,0.00014027,3]
[330676905,1719702666267,-1796.39,0.00014027,3]
[330676906,1719702666283,-655.37,0.00014027,3]
[330676907,1719702666293,-1141.56,0.00014027,3]
[330676908,1719702666302,-652.55,0.00014027,3]
[330676909,1719702666312,-500.0,0.00014027,3]
[330676910,1719702666323,-500.0,0.00014027,3]
[330676911,1719702666333,-500.0,0.00014027,3]
[330676912,1719702666343,-607.14,0.00014027,3]
[330676913,1719702666353,-579.14,0.00014027,3]
[330676914,1719702666364,-946.71,0.00014027,3]
[330676915,1719702666373,-500.0,0.00014027,3]
[330676916,1719702666383,-865.34,0.00014027,3]
[330676917,1719702666392,-500.0,0.00014027,3]
[330676918,1719702666401,-1058.73,0.00014027,3]
[330676919,1719702666411,-500.0,0.00014027,3]
[330676920,1719702666421,-544.6,0.00014027,3]
[330676921,1719702666432,-1037.96,0.00014027,3]
[330676922,1719702666442,-1324.61,0.00014027,3]
[330676923,1719702666452,-500.0,0.00014027,3]
[330676924,1719702666465,-500.0,0.00014027,3]
[330676925,1719702666474,-500.0,0.00014027,3]
[330676926,1719702666484,-500.0,0.00014027,3]
[330676927,1719702666493,-2610.56,0.00014027,3]
[330676928,1719702666503,-862.79,0.00014027,3]
[330676929,1719702666512,-500.0,0.00014027,3]
[330676930,1719702666522,-500.0,0.00014027,3]
[330676931,1719702666532,-899.23,0.00014027,3]
[330676932,1719702666541,-500.0,0.00014027,3]
[330676933,1719702666551,-647.72,0.00014027,3]
[330676934,1719702666560,-1512.84,0.00014027,3]
[330676935,1719702666570,-500.0,0.00014027,3]
[330676936,1719702666579,-500.0,0.00014027,3]
[330676937,1719702666589,-500.0,0.00014027,3]
[330676938,1719702666599,-500.0,0.00014027,3]
[330676939,1719702666608,-1515.14,0.00014027,3]
[330676940,1719702666618,-500.0,0.00014027,3]
[330676941,1719702666628,-500.0,0.00014027,3]
[330676942,1719702666637,-500.0,0.00014027,3]
[330676943,1719702666647,-500.0,0.00014027,3]
[330676944,1719702666657,-1245.81,0.00014027,3]
[330676945,1719702666667,-500.0,0.00014027,3]
[330676946,1719702666677,-500.0,0.00014027,3]
[330676947,1719702666689,-500.0,0.00014027,3]
[330676948,1719702666699,-500.0,0.00014027,3]
[330676949,1719702666709,-2556.45,0.00014027,3]
[330676950,1719702666719,-500.0,0.00014027,3]
[330676951,1719702666728,-1348.86,0.00014027,3]
[330676952,1719702666738,-500.0,0.00014027,3]
[330676953,1719702666747,-500.0,0.00014027,3]
[330676954,1719702666757,-1439.96,0.00014027,3]
[330676955,1719702666767,-500.0,0.00014027,3]
[330676956,1719702666777,-500.0,0.00014027,3]
[330676957,1719702666787,-500.0,0.00014027,3]
[330676958,1719702666796,-500.0,0.00014027,3]
[330676959,1719702666806,-500.0,0.00014027,3]
[330676960,1719702666815,-940.88,0.00014027,3]
[330676961,1719702666825,-992.02,0.00014027,3]
[330676962,1719702666835,-500.0,0.00014027,3]
[330676963,1719702666845,-694.34,0.00014027,3]
[330676964,1719702666855,-500.0,0.00014027,3]
[330676965,1719702666865,-1565.07,0.00014027,3]
[330676966,1719702666874,-500.0,0.00014027,3]
[330676967,1719702666884,-500.0,0.00014027,3]
[330676968,1719702666893,-505.37,0.00014027,3]
[330676969,1719702666903,-632.69,0.00014027,3]
[330676970,1719702666914,-1198.77,0.00014027,3]
[330676971,1719702666923,-500.78,0.00014027,3]
[330676972,1719702666936,-500.0,0.00014027,3]
[330676973,1719702666946,-569.94,0.00014027,3]
[330676974,1719702666955,-500.0,0.00014027,3]
[330676975,1719702666966,-794.21,0.00014027,3]
[330676976,1719702666975,-500.0,0.00014027,3]
[330676977,1719702666986,-515.57,0.00014027,3]
[330676978,1719702666995,-500.0,0.00014027,3]
[330676979,1719702667005,-500.0,0.00014027,3]
[330676980,1719702667015,-422.17,0.00014027,3]
[330676981,1719702667024,-500.0,0.00014027,3]
[330676982,1719702667034,-500.0,0.00014027,3]
[330676983,1719702667043,-409.33210008,0.00014027,3]
[330676984,1719702667053,-500.0,0.00014027,3]
[330676985,1719702667063,-1821.03,0.00014027,3]
[330676986,1719702667073,-1696.53,0.00014027,3]
[330676987,1719702667082,-526.17,0.00014027,3]
[330676988,1719702667091,-1142.96,0.00014027,3]
[330676989,1719702667101,-1265.27,0.00014027,3]
[330676990,1719702667111,-531.4,0.00014027,3]
[330676991,1719702667120,-500.0,0.00014027,3]
[330676992,1719702667130,-783.63,0.00014027,3]
[330676993,1719702667140,-654.77,0.00014027,3]
[330676994,1719702667149,-522.82,0.00014027,3]
[330676995,1719702667159,-1013.45,0.00014027,3]
[330676996,1719702667169,-712.74,0.00014027,3]
[330676997,1719702667178,-1239.86,0.00014027,3]
[330676998,1719702667191,-500.0,0.00014027,3]
[330676999,1719702667201,-500.0,0.00014027,3]
[330677000,1719702667213,-894.57,0.00014027,3]
[330677001,1719702667223,-500.0,0.00014027,3]
[330677002,1719702667232,-1617.24,0.00014027,3]
[330677003,1719702667242,-764.61,0.00014027,3]
[330677004,1719702667251,-500.0,0.00014027,3]
[330677005,1719702667261,-512.11,0.00014027,3]
[330677006,1719702667271,-500.0,0.00014027,3]
[330677007,1719702667286,-632.13,0.00014027,3]
[330677008,1719702667295,-513.68,0.00014027,3]
[330677009,1719702667304,-851.86,0.00014027,3]
[330677010,1719702667314,-500.0,0.00014027,3]
[330677011,1719702667326,-500.0,0.00014027,3]
[330677012,1719702667336,-500.0,0.00014027,3]
[330677013,1719702667345,-500.0,0.00014027,3]
[330677014,1719702667356,-588.89,0.00014027,3]
[330677015,1719702667366,-500.0,0.00014027,3]
[330677016,1719702667375,-1037.15,0.00014027,3]
[330677017,1719702667384,-2739.33,0.00014027,3]
[330677018,1719702667394,-1578.34,0.00014027,3]
[330677019,1719702667404,-500.0,0.00014027,3]
[330677020,1719702667413,-500.0,0.00014027,3]
[330677021,1719702667423,-545.19,0.00014027,3]
[330677022,1719702667432,-629.94,0.00014027,3]
[330677023,1719702667442,-500.0,0.00014027,3]
[330677024,1719702667451,-1169.34,0.00014027,3]
[330677025,1719702667460,-500.0,0.00014027,3]
[330677026,1719702667471,-643.99,0.00014027,3]
[330677027,1719702667481,-642.91,0.00014027,3]
[330677028,1719702667492,-500.0,0.00014027,3]
[330677029,1719702667504,-500.0,0.00014027,3]
[330677030,1719702667514,-898.77,0.00014027,3]
[330677031,1719702667525,-263.95001578,0.00014027,3]
[330677032,1719702667536,-573.27,0.00014027,3]
[330677033,1719702667547,-1367.19,0.00014027,3]
[330677034,1719702667558,-607.5,0.00014027,3]
[330677035,1719702667568,-1636.16,0.00014027,3]